fUSD/lending_fUSD_20240109
["ID","MTS","AMOUNT","RATE_DAILY","PERIOD"]
[310989859,1704842133089,-500.0,0.00041178,30]
[310989860,1704842133114,-500.0,0.00041178,30]
[310989861,1704842133138,-500.0,0.00041178,30]
[310989862,1704842133161,-500.0,0.00041178,30]
[310989863,1704842133184,-500.0,0.00041178,30]
[310989864,1704842133207,-1158.62,0.00041178,30]
[310989865,1704842133231,-500.0,0.00041178,30]
[310989866,1704842133254,-500.0,0.00041178,30]
[310989867,1704842133284,-500.0,0.00041178,30]
[310989868,1704842133308,-500.0,0.00041178,30]
[310989869,1704842133331,-500.0,0.00041178,30]
[310989870,1704842133354,-500.0,0.00041178,30]
[310989871,1704842133380,-500.0,0.00041178,30]
[310989872,1704842133403,-500.0,0.00041178,30]
[310989873,1704842133427,-500.0,0.00041178,30]
[310989874,1704842133450,-609.19758351,0.00041178,30]
[310989875,1704842133474,-500.0,0.00041178,30]
[310989876,1704842133498,-500.0,0.00041178,30]
[310989877,1704842133524,-500.0,0.00041178,30]
[310989878,1704842133547,-869.4,0.00041178,30]
[310989879,1704842133571,-500.0,0.00041178,30]
[310989880,1704842133595,-500.0,0.00041178,30]
[310989881,1704842133620,-500.0,0.00041178,30]
[310989882,1704842133645,-500.0,0.00041178,30]
[310989883,1704842133670,-500.0,0.00041178,30]
[310989884,1704842133695,-500.0,0.00041178,30]
[310989885,1704842133720,-500.0,0.00041178,30]
[310989886,1704842133745,-500.0,0.00041178,30]
[310989887,1704842133772,-508.98533105,0.00041178,30]
[310989888,1704842133796,-935.41,0.00041178,30]
[310989889,1704842133824,-151.30394955,0.00041178,30]
[310989890,1704842133850,-1105.22,0.00041178,30]
[310989891,1704842133874,-790.43,0.00041178,30]
[310989892,1704842133898,-590.78,0.00041178,30]
[310989893,1704842133924,-500.0,0.00041178,30]
[310989894,1704842133948,-628.43,0.00041178,30]
[310989895,1704842133971,-500.0,0.00041178,30]
[310989896,1704842133996,-637.46,0.00041178,30]
[310989897,1704842134022,-500.0,0.00041178,30]
[310989898,1704842134048,-500.0,0.00041178,30]
[310989899,1704842134074,-500.0,0.00041178,30]
[310989900,1704842134099,-500.0,0.00041178,30]
[310989901,1704842134128,-500.0,0.00041178,30]
[310989902,1704842134152,-500.0,0.00041178,30]
[310989903,1704842134176,-500.0,0.00041178,30]
[310989904,1704842134200,-500.0,0.00041178,30]
[310989905,1704842134223,-500.0,0.00041178,30]
[310989906,1704842134248,-500.0,0.00041178,30]
[310989907,1704842134273,-500.0,0.00041178,30]
[310989908,1704842134296,-500.0,0.00041178,30]
[310989909,1704842134320,-500.0,0.00041178,30]
[310989910,1704842134344,-500.0,0.00041178,30]
[310989911,1704842134369,-1788.41,0.00041178,30]
[310989912,1704842134477,-500.0,0.00041178,30]
[310989913,1704842134500,-500.0,0.00041178,30]
[310989914,1704842134528,-500.0,0.00041178,30]
[310989915,1704842134553,-500.0,0.00041178,30]
[310989916,1704842134576,-500.0,0.00041178,30]
[310989917,1704842134599,-500.0,0.00041178,30]
[310989918,1704842134622,-500.0,0.00041178,30]
[310989919,1704842134645,-500.0,0.00041178,30]
[310989920,1704842134669,-914.46,0.00041178,30]
[310989921,1704842134693,-500.0,0.00041178,30]
[310989922,1704842134716,-500.0,0.00041178,30]
[310989923,1704842134741,-500.0,0.00041178,30]
[310989924,1704842134767,-1169.5,0.00041178,30]
[310989925,1704842134792,-500.0,0.00041178,30]
[310989926,1704842134816,-500.0,0.00041178,30]
[310989927,1704842134839,-500.0,0.00041178,30]
[310989928,1704842134863,-500.0,0.00041178,30]
[310989929,1704842134886,-500.0,0.00041178,30]
[310989930,1704842134910,-849.87,0.00041178,30]
[310989931,1704842134934,-500.0,0.00041178,30]
[310989932,1704842134957,-500.0,0.00041178,30]
[310989933,1704842134981,-500.0,0.00041178,30]
[310989934,1704842135005,-500.0,0.00041178,30]
[310989935,1704842135031,-504.92828427,0.00041178,30]
[310989936,1704842135055,-500.0,0.00041178,30]
[310989937,1704842135080,-809.95,0.00041178,30]
[310989938,1704842135104,-500.0,0.00041178,30]
[310989939,1704842135130,-839.18,0.00041178,30]
[310989940,1704842135156,-615.92116549,0.00041178,30]
[310989941,1704842135180,-500.0,0.00041178,30]
[310989942,1704842135204,-500.0,0.00041178,30]
[310989943,1704842135228,-312.54688722,0.00041178,30]
[310989944,1704842135252,-691.06,0.00041178,30]
[310989945,1704842135279,-500.0,0.00041178,30]
[310989946,1704842135304,-223.65912273,0.00041178,30]
[310989947,1704842135327,-500.0,0.00041178,30]
[310989948,1704842135350,-1022.01,0.00041178,30]
[310989949,1704842135373,-646.66,0.00041178,30]
[310989950,1704842135404,-500.0,0.00041178,30]
[310989951,1704842135427,-500.0,0.00041178,30]
[310989952,1704842135451,-500.0,0.00041178,30]
[310989953,1704842135479,-500.0,0.00041178,30]
[310989954,1704842135505,-500.0,0.00041178,30]
[310989955,1704842135537,-400.98296563,0.00041178,30]
[310989956,1704842135561,-801.45,0.00041178,30]
[310989957,1704842135584,-500.0,0.00041178,30]
[310989958,1704842135608,-856.85,0.00041178,30]
[310989959,1704842135634,-507.91,0.00041178,30]
[310989960,1704842135657,-560.21947752,0.00041178,30]
[310989961,1704842135681,-1027.33,0.00041178,30]
[310989962,1704842135705,-547.82,0.00041178,30]
[310989963,1704842135728,-500.0,0.00041178,30]
[310989964,1704842135751,-500.0,0.00041178,30]
[310989965,1704842135774,-500.0,0.00041178,30]
[310989966,1704842135797,-617.77,0.00041178,30]
[310989967,1704842135820,-500.0,0.00041178,30]
[310989968,1704842135843,-728.41,0.00041178,30]
[310989969,1704842135866,-500.0,0.00041178,30]
[310989970,1704842135889,-500.0,0.00041178,30]
[310989971,1704842135916,-576.26,0.00041178,30]
[310989972,1704842135939,-1088.12,0.00041178,30]
[310989973,1704842135962,-525.54,0.00041178,30]
[310989974,1704842135986,-593.64,0.00041178,30]
[310989975,1704842136009,-500.0,0.00041178,30]
[310989976,1704842136033,-500.0,0.00041178,30]
[310989977,1704842136057,-500.0,0.00041178,30]
[310989978,1704842136081,-500.0,0.00041178,30]
[310989979,1704842136105,-500.0,0.00041178,30]
[310989980,1704842136129,-500.0,0.00041178,30]
[310989981,1704842136152,-982.5,0.00041178,30]
[310989982,1704842136176,-500.0,0.00041178,30]
[310989983,1704842136200,-500.0,0.00041178,30]
[310989984,1704842136224,-500.0,0.00041178,30]
[310989985,1704842136248,-1191.47,0.00041178,30]
[310989986,1704842136271,-500.0,0.00041178,30]
[310989987,1704842136293,-500.0,0.00041178,30]
[310989988,1704842136316,-500.0,0.00041178,30]
[310989989,1704842136339,-500.0,0.00041178,30]
[310989990,1704842136362,-821.21,0.00041178,30]
[310989991,1704842136385,-500.0,0.00041178,30]
[310989992,1704842136410,-622.43,0.00041178,30]
[310989993,1704842136433,-541.2,0.00041178,30]
[310989994,1704842136456,-818.71,0.00041178,30]
[310989995,1704842136479,-500.0,0.00041178,30]
[310989996,1704842136502,-500.0,0.00041178,30]
[310989997,1704842136525,-500.0,0.00041178,30]
[310989998,1704842136550,-500.0,0.00041178,30]
[310989999,1704842136573,-636.85,0.00041178,30]
[310990000,1704842136596,-500.0,0.00041178,30]
[310990001,1704842136619,-500.0,0.00041178,30]
[310990002,1704842136645,-500.0,0.00041178,30]
[310990003,1704842136667,-500.0,0.00041178,30]
[310990004,1704842136691,-506.93,0.00041178,30]
[310990005,1704842136714,-536.4,0.00041178,30]
[310990006,1704842136738,-616.48427044,0.00041178,30]
[310990007,1704842136762,-826.73,0.00041178,30]
[310990008,1704842136788,-500.0,0.00041178,30]
[310990009,1704842136811,-500.0,0.00041178,30]
[310990010,1704842136834,-500.0,0.00041178,30]
[310990011,1704842136857,-1000.0,0.00041178,30]
[310990012,1704842136880,-500.0,0.00041178,30]
[310990013,1704842136906,-425.01229042,0.00041178,30]
[310990014,1704842136930,-702.59,0.00041178,30]
[310990015,1704842136954,-500.0,0.00041178,30]
[310990016,1704842136977,-1284.98,0.00041178,30]
[310990017,1704842137001,-1064.14,0.00041178,30]
[310990018,1704842137152,-500.0,0.00041178,30]
[310990019,1704842137177,-500.0,0.00041178,30]
[310990020,1704842137201,-500.0,0.00041178,30]
[310990021,1704842137224,-500.0,0.00041178,30]
[310990022,1704842137249,-1536.1,0.00041178,30]
[310990023,1704842137273,-500.0,0.00041178,30]
[310990024,1704842137297,-500.0,0.00041178,30]
[310990025,1704842137321,-758.31,0.00041178,30]
[310990026,1704842137345,-700.39,0.00041178,30]
[310990027,1704842137369,-531.61248587,0.00041178,30]
[310990028,1704842137391,-716.95,0.00041178,30]
[310990029,1704842137416,-999.9,0.00041178,30]
[310990030,1704842137440,-500.0,0.00041178,30]
[310990031,1704842137463,-500.0,0.00041178,30]
[310990032,1704842137486,-500.0,0.00041178,30]
[310990033,1704842137510,-500.0,0.00041178,30]
[310990034,1704842137534,-890.25,0.00041178,30]
[310990035,1704842137558,-776.94,0.00041178,30]
[310990036,1704842137582,-500.0,0.00041178,30]
[310990037,1704842137605,-500.0,0.00041178,30]
[310990038,1704842137629,-531.58068078,0.00041178,30]
[310990039,1704842137653,-500.0,0.00041178,30]
[310990040,1704842137678,-658.66,0.00041178,30]
[310990041,1704842137701,-500.0,0.00041178,30]
[310990042,1704842137725,-444.13013741,0.00041178,30]
[310990043,1704842137749,-1428.3,0.00041178,30]
[310990044,1704842137773,-774.71,0.00041178,30]
[310990045,1704842137797,-786.35,0.00041178,30]
[310990046,1704842137820,-623.49,0.00041178,30]
[310990047,1704842137843,-506.62250415,0.00041178,30]
[310990048,1704842137866,-1553.4,0.00041178,30]
[310990049,1704842137888,-500.0,0.00041178,30]
[310990050,1704842137915,-500.0,0.00041178,30]
[310990051,1704842137937,-500.0,0.00041178,30]
[310990052,1704842137960,-500.0,0.00041178,30]
[310990053,1704842137983,-500.0,0.00041178,30]
[310990054,1704842138006,-501.81,0.00041178,30]
[310990055,1704842138031,-500.0,0.00041178,30]
[310990056,1704842138060,-500.0,0.00041178,30]
[310990057,1704842138084,-500.0,0.00041178,30]
[310990058,1704842138108,-500.0,0.00041178,30]
[310990059,1704842138132,-500.0,0.00041178,30]
[310990060,1704842138155,-500.0,0.00041178,30]
[310990061,1704842138179,-500.0,0.00041178,30]
[310990062,1704842138202,-500.0,0.00041178,30]
[310990063,1704842138225,-500.0,0.00041178,30]
[310990064,1704842138248,-937.45,0.00041178,30]
[310990065,1704842138273,-500.0,0.00041178,30]
[310990066,1704842138298,-500.0,0.00041178,30]
[310990067,1704842138323,-549.54258124,0.00041178,30]
[310990068,1704842138347,-543.86,0.00041178,30]
[310990069,1704842138371,-500.0,0.00041178,30]
[310990070,1704842138396,-1219.82,0.00041178,30]
[310990071,1704842138421,-500.0,0.00041178,30]
[310990072,1704842138443,-500.0,0.00041178,30]
[310990073,1704842138471,-239.29249406,0.00041178,30]
[310990074,1704842138496,-505.17,0.00041178,30]
[310990075,1704842138521,-500.0,0.00041178,30]
[310990076,1704842138543,-500.0,0.00041178,30]
[310990077,1704842138566,-500.0,0.00041178,30]
[310990078,1704842138592,-500.0,0.00041178,30]
[310990079,1704842138617,-500.0,0.00041178,30]
[310990080,1704842138641,-2475.44,0.00041178,30]
[310990081,1704842138665,-500.0,0.00041178,30]
[310990082,1704842138688,-730.71,0.00041178,30]
[310990083,1704842138711,-500.0,0.00041178,30]
[310990084,1704842138735,-500.0,0.00041178,30]
[310990085,1704842138760,-909.28,0.00041178,30]
[310990086,1704842138784,-500.0,0.00041178,30]
[310990087,1704842138807,-500.0,0.00041178,30]
[310990088,1704842138831,-500.0,0.00041178,30]
[310990089,1704842138857,-874.2,0.00041178,30]
[310990090,1704842138881,-500.0,0.00041178,30]
[310990091,1704842138909,-2228.24,0.00041178,30]
[310990092,1704842138933,-500.0,0.00041178,30]
[310990093,1704842138957,-500.0,0.00041178,30]
[310990094,1704842138982,-500.0,0.00041178,30]
[310990095,1704842139006,-904.81,0.00041178,30]
[310990096,1704842139030,-500.0,0.00041178,30]
[310990097,1704842139053,-776.58,0.00041178,30]
[310990098,1704842139077,-500.0,0.00041178,30]
[310990099,1704842139101,-609.32,0.00041178,30]
[310990100,1704842139125,-500.0,0.00041178,30]
[310990101,1704842139149,-845.5,0.00041178,30]
[310990102,1704842139173,-552.01,0.00041178,30]
[310990103,1704842139196,-500.0,0.00041178,30]
[310990104,1704842139219,-500.0,0.00041178,30]
[310990105,1704842139243,-500.0,0.00041178,30]
[310990106,1704842139266,-1217.44,0.00041178,30]
[310990107,1704842139294,-500.0,0.00041178,30]
[310990108,1704842139625,-500.0,0.00041178,30]
[310990109,1704842139651,-974.23,0.00041178,30]
[310990110,1704842139676,-500.0,0.00041178,30]
[310990111,1704842139702,-872.14,0.00041178,30]
[310990112,1704842139727,-500.0,0.00041178,30]
[310990113,1704842139751,-512.61,0.00041178,30]
[310990114,1704842139777,-1148.36,0.00041178,30]
[310990115,1704842139801,-500.0,0.00041178,30]
[310990116,1704842139825,-608.39,0.00041178,30]
[310990117,1704842139849,-519.97573387,0.00041178,30]
[310990118,1704842139873,-1116.17,0.00041178,30]
[310990119,1704842139897,-691.93,0.00041178,30]
[310990120,1704842139926,-500.0,0.00041178,30]
[310990121,1704842139949,-881.39,0.00041178,30]
[310990122,1704842139975,-500.0,0.00041178,30]
[310990123,1704842139999,-500.0,0.00041178,30]
[310990124,1704842140024,-1122.95,0.00041178,30]
[310990125,1704842140048,-520.39,0.00041178,30]
[310990126,1704842140073,-633.06,0.00041178,30]
[310990127,1704842140096,-500.0,0.00041178,30]
[310990128,1704842140121,-1817.95,0.00041178,30]
[310990129,1704842140147,-2581.89,0.00041178,30]
[310990130,1704842140173,-612.96,0.00041178,30]
[310990131,1704842140201,-500.0,0.00041178,30]
[310990132,1704842140226,-657.89,0.00041178,30]
[310990133,1704842140250,-500.0,0.00041178,30]
[310990134,1704842140277,-271.38174769,0.00041178,30]
[310990135,1704842140302,-1444.98,0.00041178,30]
[310990136,1704842140326,-500.0,0.00041178,30]
[310990137,1704842140352,-1657.6,0.00041178,30]
[310990138,1704842140377,-500.0,0.00041178,30]
[310990139,1704842140401,-695.91,0.00041178,30]
[310990140,1704842140426,-1156.44,0.00041178,30]
[310990141,1704842140449,-713.54,0.00041178,30]
[310990142,1704842140473,-228.15561169,0.00041178,30]
[310990143,1704842140497,-605.72,0.00041178,30]
[310990144,1704842140522,-1274.12,0.00041178,30]
[310990145,1704842140546,-500.0,0.00041178,30]
[310990146,1704842140571,-500.0,0.00041178,30]
[310990147,1704842140596,-1776.87,0.00041178,30]
[310990148,1704842140620,-500.0,0.00041178,30]
[310990149,1704842140646,-500.0,0.00041178,30]
[310990150,1704842140672,-518.49,0.00041178,30]
[310990151,1704842140698,-418.52815657,0.00041178,30]
[310990152,1704842140722,-500.0,0.00041178,30]
[310990153,1704842140747,-500.0,0.00041178,30]
[310990154,1704842140772,-500.0,0.00041178,30]
[310990155,1704842140795,-1727.42,0.00041178,30]
[310990156,1704842140823,-500.0,0.00041178,30]
[310990157,1704842140856,-500.0,0.00041178,30]
[310990158,1704842140881,-1000.0,0.00041178,30]
[310990159,1704842140907,-884.49,0.00041178,30]
[310990160,1704842140934,-1215.67,0.00041178,30]
[310990161,1704842140958,-577.85,0.00041178,30]
[310990162,1704842140982,-644.42,0.00041178,30]
[310990163,1704842141005,-500.0,0.00041178,30]
[310990164,1704842141030,-500.0,0.00041178,30]
[310990165,1704842141054,-1227.5,0.00041178,30]
[310990166,1704842141078,-500.0,0.00041178,30]
[310990167,1704842141101,-500.0,0.00041178,30]
[310990168,1704842141124,-500.0,0.00041178,30]
[310990169,1704842141149,-848.54,0.00041178,30]
[310990170,1704842141174,-337.45280278,0.00041178,30]
[310990171,1704842141198,-500.0,0.00041178,30]
[310990172,1704842141223,-1831.38,0.00041178,30]
[310990173,1704842141246,-1451.11,0.00041178,30]
[310990174,1704842141271,-500.0,0.00041178,30]
[310990175,1704842141295,-500.0,0.00041178,30]
[310990176,1704842141318,-865.87,0.00041178,30]
[310990177,1704842141341,-1295.34,0.00041178,30]
[310990178,1704842141368,-335.3942161,0.00041178,30]
[310990179,1704842141392,-528.97,0.00041178,30]
[310990180,1704842141504,-500.0,0.00041178,30]
[310990181,1704842141528,-500.0,0.00041178,30]
[310990182,1704842141552,-822.54,0.00041178,30]
[310990183,1704842141575,-500.0,0.00041178,30]
[310990184,1704842141598,-500.0,0.00041178,30]
[310990185,1704842141622,-500.0,0.00041178,30]
[310990186,1704842141646,-596.71,0.00041178,30]
[310990187,1704842141669,-500.0,0.00041178,30]
[310990188,1704842141692,-500.0,0.00041178,30]
[310990189,1704842141715,-500.0,0.00041178,30]
[310990190,1704842141740,-1363.27,0.00041178,30]
[310990191,1704842141763,-500.0,0.00041178,30]
[310990192,1704842141788,-322.20448887,0.00041178,30]
[310990193,1704842141810,-500.0,0.00041178,30]
[310990194,1704842141833,-354.78000377,0.00041178,30]
[310990195,1704842141855,-500.0,0.00041178,30]
[310990196,1704842141879,-500.0,0.00041178,30]
[310990197,1704842141901,-500.0,0.00041178,30]
[310990198,1704842141927,-1389.37,0.00041178,30]
[310990199,1704842141950,-500.0,0.00041178,30]
[310990200,1704842141975,-500.0,0.00041178,30]
[310990201,1704842142000,-500.0,0.00041178,30]
[310990202,1704842142024,-500.0,0.00041178,30]
[310990203,1704842142048,-592.81,0.00041178,30]
[310990204,1704842142070,-500.0,0.00041178,30]
[310990205,1704842142093,-500.0,0.00041178,30]
[310990206,1704842142120,-500.0,0.00041178,30]
[310990207,1704842142144,-500.0,0.00041178,30]
[310990208,1704842142168,-500.0,0.00041178,30]
[310990209,1704842142191,-500.0,0.00041178,30]
[310990210,1704842142214,-552.33,0.00041178,30]
[310990211,1704842142238,-500.0,0.00041178,30]
[310990212,1704842142262,-500.0,0.00041178,30]
[310990214,1704842142286,-434.41244304,0.00041178,30]
[310990215,1704842142309,-2333.49,0.00041178,30]
[310990216,1704842142332,-693.82,0.00041178,30]
[310990217,1704842142355,-500.0,0.00041178,30]
[310990218,1704842142379,-500.0,0.00041178,30]
[310990219,1704842142402,-911.69,0.00041178,30]
[310990220,1704842142426,-2000.0,0.00041178,30]
[310990221,1704842142451,-1495.19,0.00041178,30]
[310990222,1704842142475,-618.42,0.00041178,30]
[310990223,1704842142498,-1002.38,0.00041178,30]
[310990224,1704842142524,-1757.06,0.00041178,30]
[310990225,1704842142548,-500.0,0.00041178,30]
[310990226,1704842142573,-500.0,0.00041178,30]
[310990227,1704842142598,-500.000001,0.00041178,30]
[310990228,1704842142622,-500.0,0.00041178,30]
[310990229,1704842142646,-500.0,0.00041178,30]
[310990230,1704842142672,-968.51,0.00041178,30]
[310990231,1704842142700,-983.99,0.00041178,30]
[310990232,1704842142725,-500.0,0.00041178,30]
[310990233,1704842142749,-500.0,0.00041178,30]
[310990234,1704842142776,-500.0,0.00041178,30]
[310990235,1704842142801,-913.75,0.00041178,30]
[310990236,1704842142825,-886.46,0.00041178,30]
[310990237,1704842142849,-588.62,0.00041178,30]
[310990238,1704842142874,-500.0,0.00041178,30]
[310990239,1704842142902,-500.0,0.00041178,30]
[310990240,1704842142930,-500.0,0.00041178,30]
[310990241,1704842142957,-500.0,0.00041178,30]
[310990242,1704842142983,-500.0,0.00041178,30]
[310990243,1704842143008,-500.0,0.00041178,30]
[310990244,1704842143035,-1478.89,0.00041178,30]
[310990245,1704842143061,-500.0,0.00041178,30]
[310990246,1704842143087,-500.0,0.00041178,30]
[310990247,1704842143112,-626.38,0.00041178,30]
[310990248,1704842143138,-1707.24,0.00041178,30]
[310990249,1704842143167,-1459.91,0.00041178,30]
[310990250,1704842143192,-500.0,0.00041178,30]
[310990251,1704842143217,-901.39,0.00041178,30]
[310990252,1704842143242,-501.45252626,0.00041178,30]
[310990253,1704842143267,-500.0,0.00041178,30]
[310990254,1704842143296,-500.0,0.00041178,30]
[310990255,1704842143320,-500.0,0.00041178,30]
[310990256,1704842143343,-500.0,0.00041178,30]
[310990257,1704842143368,-828.51,0.00041178,30]
[310990258,1704842143393,-500.0,0.00041178,30]
[310990259,1704842143419,-500.0,0.00041178,30]
[310990260,1704842143456,-500.0,0.00041178,30]
[310990261,1704842143481,-854.02,0.00041178,30]
[310990262,1704842143506,-536.59,0.00041178,30]
[310990263,1704842143533,-500.0,0.00041178,30]
[310990264,1704842143558,-500.0,0.00041178,30]
[310990265,1704842143581,-500.0,0.00041178,30]
[310990266,1704842143606,-1717.59,0.00041178,30]
[310990267,1704842143630,-649.77486738,0.00041178,30]
[310990268,1704842143655,-500.0,0.00041178,30]
[310990269,1704842143680,-1597.78,0.00041178,30]
[310990270,1704842143709,-497.66576163,0.00041178,30]
[310990271,1704842143734,-500.0,0.00041178,30]
[310990272,1704842143759,-633.95,0.00041178,30]
[310990273,1704842143787,-2049.69,0.00041178,30]
[310990274,1704842143811,-655.52,0.00041178,30]
[310990275,1704842143836,-2130.53,0.00041178,30]
[310990276,1704842143859,-500.0,0.00041178,30]
[310990277,1704842143892,-500.0,0.00041178,30]
[310990278,1704842143919,-500.59,0.00041178,30]
[310990279,1704842143944,-745.75,0.00041178,30]
[310990280,1704842143968,-500.0,0.00041178,30]
[310990281,1704842143992,-931.42,0.00041178,30]
[310990282,1704842144015,-507.07103895,0.00041178,30]
[310990283,1704842144039,-500.0,0.00041178,30]
[310990284,1704842144062,-2274.86,0.00041178,30]
[310990285,1704842144087,-500.0,0.00041178,30]
[310990286,1704842144110,-500.0,0.00041178,30]
[310990287,1704842144327,-500.0,0.00041178,30]
[310990288,1704842144353,-500.0,0.00041178,30]
[310990289,1704842144377,-902.6,0.00041178,30]
[310990290,1704842144401,-500.0,0.00041178,30]
[310990291,1704842144425,-1730.38,0.00041178,30]
[310990292,1704842144448,-806.85,0.00041178,30]
[310990293,1704842144471,-1168.86,0.00041178,30]
[310990294,1704842144495,-1486.78,0.00041178,30]
[310990295,1704842144518,-641.01,0.00041178,30]
[310990296,1704842144543,-500.0,0.00041178,30]
[310990297,1704842144567,-500.0,0.00041178,30]
[310990298,1704842144590,-500.0,0.00041178,30]
[310990299,1704842144615,-500.0,0.00041178,30]
[310990300,1704842144638,-500.0,0.00041178,30]
[310990301,1704842144662,-500.0,0.00041178,30]
[310990302,1704842144686,-500.0,0.00041178,30]
[310990303,1704842144711,-1474.35,0.00041178,30]
[310990304,1704842144735,-2031.51,0.00041178,30]
[310990305,1704842144759,-500.0,0.00041178,30]
[310990306,1704842144784,-500.0,0.00041178,30]
[310990307,1704842144808,-500.0,0.00041178,30]
[310990308,1704842144831,-500.0,0.00041178,30]
[310990309,1704842144855,-521.31,0.00041178,30]
[310990310,1704842144878,-500.0,0.00041178,30]
[310990311,1704842144901,-500.0,0.00041178,30]
[310990312,1704842144927,-300.0,0.00041178,30]
[310990313,1704842144951,-1325.29,0.00041178,30]
[310990314,1704842144974,-500.0,0.00041178,30]
[310990315,1704842144999,-500.0,0.00041178,30]
[310990316,1704842145025,-780.66,0.00041178,30]
[310990317,1704842145052,-991.29,0.00041178,30]
[310990318,1704842145082,-794.78,0.00041178,30]
[310990319,1704842145111,-887.07,0.00041178,30]
[310990320,1704842145139,-596.35,0.00041178,30]
[310990321,1704842145165,-500.0,0.00041178,30]
[310990322,1704842145194,-652.08,0.00041178,30]
[310990323,1704842145220,-1127.06,0.00041178,30]
[310990324,1704842145246,-500.0,0.00041178,30]
[310990325,1704842145271,-500.0,0.00041178,30]
[310990326,1704842145300,-500.0,0.00041178,30]
[310990327,1704842145326,-500.0,0.00041178,30]
[310990328,1704842145349,-500.0,0.00041178,30]
[310990329,1704842145373,-500.0,0.00041178,30]
[310990330,1704842145396,-1406.92,0.00041178,30]
[310990331,1704842145421,-514.84,0.00041178,30]
[310990332,1704842145445,-935.85,0.00041178,30]
[310990333,1704842145469,-500.0,0.00041178,30]
[310990334,1704842145493,-500.0,0.00041178,30]
[310990335,1704842145517,-500.0,0.00041178,30]
[310990336,1704842145545,-677.83,0.00041178,30]
[310990337,1704842145570,-500.0,0.00041178,30]
[310990338,1704842145595,-500.0,0.00041178,30]
[310990339,1704842145619,-1473.45,0.00041178,30]
[310990340,1704842145643,-500.0,0.00041178,30]
[310990341,1704842145668,-820.73,0.00041178,30]
[310990342,1704842145691,-2553.86,0.00041178,30]
[310990343,1704842145715,-500.0,0.00041178,30]
[310990344,1704842145738,-590.45,0.00041178,30]
[310990345,1704842145761,-925.02,0.00041178,30]
[310990346,1704842145787,-670.56,0.00041178,30]
[310990347,1704842145812,-713.04,0.00041178,30]
[310990348,1704842145835,-500.0,0.00041178,30]
[310990349,1704842145858,-781.5,0.00041178,30]
[310990350,1704842145882,-617.45,0.00041178,30]
[310990351,1704842145906,-542.59,0.00041178,30]
[310990352,1704842145931,-673.14,0.00041178,30]
[310990353,1704842145955,-639.62,0.00041178,30]
[310990354,1704842145979,-500.0,0.00041178,30]
[310990355,1704842146006,-4633.48,0.00041178,30]
[310990356,1704842146031,-500.0,0.00041178,30]
[310990357,1704842146055,-901.79,0.00041178,30]
[310990358,1704842146079,-514.76352736,0.00041178,30]
[310990359,1704842146103,-2318.05,0.00041178,30]